[Event "ESTCC-65 2025"]
[Site "Swidnica"]
[Date "2025.04.08"]
[Round "4.14"]
[White "Joentausta, Hannu"]
[Black "Raupp, Thomas"]
[Result "1/2-1/2"]
[Annotator "RC"]
[ECO "D02"]
[WhiteElo "2081"]
[BlackElo "2247"]
[PlyCount "67"]
[EventDate "2025.04.05"]
[EventType "team-tourn"]
[EventCountry "POL"]
[SourceTitle "playchess.com"]
[Source "ChessBase"]
[SourceQuality "1"]
[WhiteTeam "Finland"]
[BlackTeam "Germany"]
[WhiteTeamCountry "FIN"]
[BlackTeamCountry "GER"]
[TimeControl "40/5400+30:1800+30"]

1. d4 {[%emt 0:00:05]} d5 {[%emt 0:01:40]} 2. Nf3 {[%emt 0:00:07]} Nf6 {[%emt 0:00:14]} 3. g3 {[%emt 0:02:07]} c6 {[%emt 0:02:27]} 4. Bg2 {[%emt 0:00:13]} Bf5 {[%emt 0:00:15]} 5. O-O {[%emt 0:01:03]} h6 {[%emt 0:00:49]} 6. c4 {[%emt 0:00:36]} e6 {[%emt 0:00:13]} 7. Nc3 {[%emt 0:01:10]} Nbd7 {[%emt 0:03:25]} 8. b3 {[%emt 0:12:15]} Be7 {[%emt 0:03:09]} 9. Bb2 {[%emt 0:01:13]} O-O {[%emt 0:00:11]} 10. Nd2 {[%emt 0:09:34]} Re8 {[%emt 0:09:16]} 11. e4 {[%emt 0:04:11]} dxe4 {[%emt 0:00:25]} 12. Ncxe4 {[%emt 0:03:21]} Nxe4 {[%emt 0:09:59]} 13. Nxe4 {[%emt 0:00:04]} Nf6 {[%emt 0:00:20]} 14. Nc5 {[%emt 0:11:42]} Qb6 {[%emt 0:06:52]} 15. Na4 {[%emt 0:02:37]} Qc7 {[%emt 0:06:28]} 16. Qe2 {[%emt 0:03:59]} Rad8 {[%emt 0:00:21]} 17. Rfd1 {[%emt 0:01:29]} Bg4 {[%emt 0:11:23]} 18. Bf3 {[%emt 0:00:32]} Bxf3 {[%emt 0:00:16]} 19. Qxf3 {[%emt 0:00:02]} b5 {[%emt 0:06:34]} 20. cxb5 {[%emt 0:05:52]} cxb5 {[%emt 0:00:08]} 21. Rdc1 {[%emt 0:00:43]} Qb8 {[%emt 0:06:23]} 22. Nc5 {[%emt 0:00:46]} Nd5 {[%emt 0:00:28]} 23. a4 {[%emt 0:06:35]} b4 {[%emt 0:02:27]} 24. Nd3 {[%emt 0:01:14]} Bd6 {[%emt 0:05:34]} 25. Rc4 {[%emt 0:04:25]} Rc8 {[%emt 0:05:52]} 26. Rac1 {[%emt 0:01:38]} Qb7 {[%emt 0:04:37]} 27. Nc5 {[%emt 0:01:43]} Qe7 {[%emt 0:02:25]} 28. Ne4 {[%emt 0:06:04]} Rb8 {[%emt 0:00:59]} 29. Rc6 {[%emt 0:04:07]} Bc7 {[%emt 0:00:15]} 30. Qe2 {[%emt 0:06:32]} Rb6 {[%emt 0:02:31]} 31. Qc4 {[%emt 0:02:23]} Rxc6 {[%emt 0:00:24]} 32. Qxc6 {[%emt 0:00:02]} Rd8 {[%emt 0:01:07]} 33. Qa6 {[%emt 0:04:03]} Bb8 {[%emt 0:02:48]} 34. Qb5 {[%emt 0:02:26]} 1/2-1/2

[Event "ESTCC-65 2025"]
[Site "Swidnica"]
[Date "2025.04.08"]
[Round "4.15"]
[White "Miltner, Arndt"]
[Black "Vinke, Dietmar"]
[Result "1-0"]
[Annotator "RC"]
[ECO "A00"]
[WhiteElo "2232"]
[BlackElo "2078"]
[PlyCount "67"]
[EventDate "2025.04.05"]
[EventType "team-tourn"]
[EventCountry "POL"]
[SourceTitle "playchess.com"]
[Source "ChessBase"]
[SourceQuality "1"]
[WhiteTeam "Germany"]
[BlackTeam "Finland"]
[WhiteTeamCountry "GER"]
[BlackTeamCountry "FIN"]
[TimeControl "40/5400+30:1800+30"]

1. b4 {[%emt 0:00:10]} e5 {[%emt 0:00:15]} 2. Bb2 {[%emt 0:00:27]} Bxb4 {[%emt 0:00:39]} 3. Bxe5 {[%emt 0:00:20]} Nf6 {[%emt 0:00:13]} 4. c3 {[%emt 0:01:04]} Be7 {[%emt 0:00:58]} 5. g3 {[%emt 0:01:37]} Nc6 {[%emt 0:05:15]} 6. Bxf6 {[%emt 0:01:26]} Bxf6 {[%emt 0:00:06]} 7. Bg2 {[%emt 0:02:07]} d5 {[%emt 0:01:23]} 8. d4 {[%emt 0:01:10]} O-O {[%emt 0:02:50]} 9. e3 {[%emt 0:03:15]} Ne7 {[%emt 0:03:47]} 10. Ne2 {[%emt 0:04:10]} c6 {[%emt 0:01:51]} 11. O-O {[%emt 0:03:17]} Nf5 {[%emt 0:01:11]} 12. Nd2 {[%emt 0:05:55]} Nd6 {[%emt 0:01:43]} 13. Rc1 {[%emt 0:10:56]} Re8 {[%emt 0:32:06]} 14. Nf4 {[%emt 0:06:05]} Bg5 {[%emt 0:01:46]} 15. Nd3 {[%emt 0:01:58]} Bf5 {[%emt 0:00:47]} 16. Ne5 {[%emt 0:01:57]} f6 {[%emt 0:13:32]} 17. Nef3 {[%emt 0:01:31]} Bh6 {[%emt 0:00:49]} 18. Qe2 {[%emt 0:02:24]} Qd7 {[%emt 0:02:40]} 19. c4 {[%emt 0:03:01]} Nxc4 {[%emt 0:00:39]} 20. Nxc4 {[%emt 0:00:22]} dxc4 {[%emt 0:00:03]} 21. Rxc4 {[%emt 0:01:58]} Be4 {[%emt 0:02:15]} 22. Rfc1 {[%emt 0:03:45]} g6 {[%emt 0:02:27]} 23. Ne5 {[%emt 0:04:05]} fxe5 {[%emt 0:00:55]} 24. Bxe4 {[%emt 0:00:12]} exd4 {[%emt 0:08:04]} 25. Rxd4 {[%emt 0:00:16]} Qe7 {[%emt 0:00:48]} 26. Rcd1 {[%emt 0:02:27]} Rad8 {[%emt 0:02:21]} 27. Qc4+ {[%emt 0:01:25]} Kh8 {[%emt 0:01:33]} 28. Rxd8 {[%emt 0:01:11]} Rxd8 {[%emt 0:00:04]} 29. Rxd8+ {[%emt 0:00:20]} Qxd8 {[%emt 0:00:03]} 30. Qf7 {[%emt 0:00:29]} Bg5 {[%emt 0:08:00]} 31. Qxb7 {[%emt 0:04:07]} Qd1+ {[%emt 0:00:14]} 32. Kg2 {[%emt 0:00:22]} Bxe3 {[%emt 0:00:16]} 33. Qf7 {[%emt 0:03:35]} Bc5 {[%emt 0:02:42]} 34. Qe8+ {[%emt 0:00:28]} 1-0

[Event "ESTCC-65 2025"]
[Site "Swidnica"]
[Date "2025.04.08"]
[Round "4.16"]
[White "Patola, Eero"]
[Black "Vatter, Hans-Joachim"]
[Result "1/2-1/2"]
[Annotator "RC"]
[ECO "D37"]
[WhiteElo "1872"]
[BlackElo "2192"]
[PlyCount "57"]
[EventDate "2025.04.05"]
[EventType "team-tourn"]
[EventCountry "POL"]
[SourceTitle "playchess.com"]
[Source "ChessBase"]
[SourceQuality "1"]
[WhiteTeam "Finland"]
[BlackTeam "Germany"]
[WhiteTeamCountry "FIN"]
[BlackTeamCountry "GER"]
[TimeControl "40/5400+30:1800+30"]

1. c4 {[%emt 0:02:16]} e6 {[%emt 0:00:16]} 2. d4 {[%emt 0:00:52]} Nf6 {[%emt 0:01:08]} 3. Nf3 {[%emt 0:00:40]} d5 {[%emt 0:00:34]} 4. Nc3 {[%emt 0:00:32]} dxc4 {[%emt 0:05:26]} 5. e4 {[%emt 0:00:35]} b5 {[%emt 0:01:12]} 6. e5 {[%emt 0:06:02]} Nd5 {[%emt 0:02:18]} 7. Nxd5 {[%emt 0:06:34]} Qxd5 {[%emt 0:03:33]} 8. Be2 {[%emt 0:03:54]} Bb7 {[%emt 0:04:17]} 9. a3 {[%emt 0:04:12]} c5 {[%emt 0:18:12]} 10. Be3 {[%emt 0:05:42]} cxd4 {[%emt 0:05:10]} 11. Bxd4 {[%emt 0:01:21]} Nc6 {[%emt 0:03:10]} 12. Bc3 {[%emt 0:05:40]} Qxd1+ {[%emt 0:01:07]} 13. Bxd1 {[%emt 0:01:35]} Bc5 {[%emt 0:02:47]} 14. O-O {[%emt 0:01:03]} O-O {[%emt 0:00:33]} 15. Bc2 {[%emt 0:03:48]} Rfd8 {[%emt 0:07:49]} 16. Ng5 {[%emt 0:08:34]} h6 {[%emt 0:12:34]} 17. Ne4 {[%emt 0:02:08]} Bd4 {[%emt 0:04:07]} 18. Nd6 {[%emt 0:03:45]} Rab8 {[%emt 0:15:38]} 19. Nxb7 {[%emt 0:05:11]} Rxb7 {[%emt 0:00:31]} 20. Be4 {[%emt 0:00:31]} Bxc3 {[%emt 0:01:20]} 21. bxc3 {[%emt 0:00:34]} Rc7 22. f4 {[%emt 0:02:25]} Ne7 {[%emt 0:03:51]} 23. a4 {[%emt 0:04:29]} bxa4 {[%emt 0:01:10]} 24. Rxa4 {[%emt 0:00:10]} Nd5 {[%emt 0:00:03]} 25. Rd1 {[%emt 0:02:20]} Rdd7 {[%emt 0:00:08]} 26. Bxd5 {[%emt 0:05:10]} Rxd5 {[%emt 0:00:16]} 27. Rxd5 {[%emt 0:03:03]} exd5 {[%emt 0:00:13]} 28. Kf2 {[%emt 0:01:01]} Rb7 {[%emt 0:03:50]} 29. Ke3 {[%emt 0:01:54]} 1/2-1/2

[Event "ESTCC-65 2025"]
[Site "Swidnica"]
[Date "2025.04.09"]
[Round "6"]
[White "Nunn, John D M"]
[Black "Vadlja, Stjepan"]
[Result "1-0"]
[Annotator "ChessBase"]
[ECO "C41"]
[WhiteElo "2528"]
[BlackElo "1697"]
[PlyCount "45"]
[EventDate "2025.04.05"]
[EventType "team-tourn"]
[EventCountry "POL"]
[SourceTitle "playchess.com"]
[Source "ChessBase"]
[SourceQuality "1"]
[WhiteTeam "England"]
[BlackTeam "Croatia"]
[WhiteTeamCountry "ENG"]
[BlackTeamCountry "CRO"]
[TimeControl "40/5400+30:1800+30"]

1. e4 {[%emt 0:00:05]} e5 {[%emt 0:00:36]} 2. Nf3 {[%emt 0:00:07]} d6 {[%emt 0:00:21]} 3. d4 {[%emt 0:00:22]} Bg4 {[%emt 0:00:32]} 4. dxe5 {[%emt 0:00:23]} Bxf3 {[%emt 0:00:20]} 5. Qxf3 {[%emt 0:00:12]} dxe5 {[%emt 0:00:31]} 6. Bc4 {[%emt 0:00:51]} Nf6 {[%emt 0:00:24]} 7. Qb3 {[%emt 0:00:31]} Be7 {[%emt 0:02:16]} 8. Bxf7+ {[%emt 0:01:45]} Kf8 9. Nd2 Nbd7 {[%emt 0:07:48]} 10. Bc4 {[%emt 0:01:27]} Nb6 {[%emt 0:01:18]} 11. O-O {[%emt 0:00:29]} Qd4 {[%emt 0:00:44]} 12. Bd3 {[%emt 0:01:50]} Rd8 {[%emt 0:07:52]} 13. Nf3 {[%emt 0:00:37]} Qd6 {[%emt 0:05:07]} 14. Ng5 {[%emt 0:00:17]} Nfd5 {[%emt 0:00:32]} 15. exd5 {[%emt 0:00:16]} Bxg5 16. Bxg5 Re8 {[%emt 0:02:03]} 17. Bb5 {[%emt 0:00:42]} Rc8 {[%emt 0:01:18]} 18. Rae1 {[%emt 0:01:42]} h6 {[%emt 0:00:36]} 19. Bd2 {[%emt 0:00:27]} Kg8 {[%emt 0:00:27]} 20. Bb4 {[%emt 0:01:03]} Qxd5 {[%emt 0:00:48]} 21. Qxd5+ {[%emt 0:00:07]} Nxd5 {[%emt 0:00:10]} 22. Bc4 {[%emt 0:00:40]} c6 23. Rxe5 1-0

[Event "ESTCC-65 2025"]
[Site "Swidnica"]
[Date "2025.04.09"]
[Round "6"]
[White "Mestel, A Jonathan"]
[Black "Novak, Stjepan"]
[Result "1-0"]
[Annotator "ChessBase"]
[ECO "B32"]
[WhiteElo "2449"]
[BlackElo "1671"]
[PlyCount "31"]
[EventDate "2025.04.05"]
[EventType "team-tourn"]
[EventCountry "POL"]
[SourceTitle "playchess.com"]
[Source "ChessBase"]
[SourceQuality "1"]
[WhiteTeam "England"]
[BlackTeam "Croatia"]
[WhiteTeamCountry "ENG"]
[BlackTeamCountry "CRO"]
[TimeControl "40/5400+30:1800+30"]

1. e4 {[%emt 0:00:09]} c5 {[%emt 0:00:43]} 2. Nf3 {[%emt 0:00:11]} Nc6 {[%emt 0:00:20]} 3. d4 {[%emt 0:00:39]} e6 {[%emt 0:00:30]} 4. d5 {[%emt 0:01:07]} exd5 {[%emt 0:01:18]} 5. exd5 {[%emt 0:00:21]} Qe7+ {[%emt 0:01:18]} 6. Be2 {[%emt 0:02:19]} Ne5 {[%emt 0:00:22]} 7. O-O {[%emt 0:03:57]} Nxf3+ {[%emt 0:00:32]} 8. Bxf3 {[%emt 0:00:15]} Qd6 {[%emt 0:00:26]} 9. Re1+ {[%emt 0:02:24]} Be7 {[%emt 0:02:15]} 10. Na3 {[%emt 0:01:39]} Kf8 {[%emt 0:01:06]} 11. Nc4 {[%emt 0:07:21]} Qf6 {[%emt 0:00:33]} 12. d6 {[%emt 0:00:37]} Bd8 {[%emt 0:00:26]} 13. Bd2 {[%emt 0:04:53]} Qh4 {[%emt 0:01:53]} 14. Qe2 {[%emt 0:00:25]} Nf6 {[%emt 0:00:10]} 15. Qe7+ {[%emt 0:00:13]} Bxe7 {[%emt 0:00:55]} 16. dxe7+ {[%emt 0:00:06]} 1-0

[Event "ESTCC-65 2025"]
[Site "Swidnica"]
[Date "2025.04.09"]
[Round "6"]
[White "Raupp, Thomas"]
[Black "Goormachtigh, Johan"]
[Result "0-1"]
[Annotator "ChessBase"]
[ECO "D97"]
[WhiteElo "2247"]
[BlackElo "2207"]
[PlyCount "56"]
[EventDate "2025.04.05"]
[EventType "team-tourn"]
[EventCountry "POL"]
[SourceTitle "playchess.com"]
[Source "ChessBase"]
[SourceQuality "1"]
[WhiteTeam "Germany"]
[BlackTeam "Belgium"]
[WhiteTeamCountry "GER"]
[BlackTeamCountry "BEL"]
[TimeControl "40/5400+30:1800+30"]

1. d4 {[%emt 0:00:08]} Nf6 {[%emt 0:00:19]} 2. c4 {[%emt 0:00:06]} g6 {[%emt 0:00:28]} 3. Nc3 {[%emt 0:00:07]} d5 {[%emt 0:00:25]} 4. Nf3 {[%emt 0:00:18]} Bg7 {[%emt 0:00:10]} 5. Qb3 {[%emt 0:00:25]} dxc4 {[%emt 0:00:21]} 6. Qxc4 {[%emt 0:00:11]} O-O {[%emt 0:00:20]} 7. e4 {[%emt 0:00:23]} Nc6 {[%emt 0:01:43]} 8. Be2 {[%emt 0:04:12]} e5 {[%emt 0:00:25]} 9. d5 {[%emt 0:01:07]} Nd4 {[%emt 0:00:08]} 10. Nxd4 {[%emt 0:00:05]} exd4 {[%emt 0:00:06]} 11. Qxd4 {[%emt 0:00:09]} c6 {[%emt 0:00:08]} 12. Qc4 {[%emt 0:00:17]} b5 {[%emt 0:00:28]} 13. Qxc6 {[%emt 0:00:07]} Bd7 {[%emt 0:00:04]} 14. Qd6 {[%emt 0:00:14]} Re8 {[%emt 0:01:57]} 15. f3 {[%emt 0:00:55]} Nh5 {[%emt 0:01:38]} 16. Be3 {[%emt 0:01:28]} Be5 {[%emt 0:04:16]} 17. Qa6 {[%emt 0:05:06]} f5 {[%emt 0:17:12]} 18. g3 {[%emt 0:14:57]} f4 {[%emt 0:10:39]} 19. gxf4 {[%emt 0:18:56]} Nxf4 {[%emt 0:04:15]} 20. Bxf4 {[%emt 0:14:36]} Qh4+ {[%emt 0:03:16]} 21. Bg3 {[%emt 0:06:57]} Bxg3+ {[%emt 0:00:12]} 22. Kd1 {[%emt 0:06:14]} Bf4 {[%emt 0:24:39]} 23. Bxb5 {[%emt 0:10:46]} Qf2 {[%emt 0:01:37]} 24. Be2 {[%emt 0:00:09]} Rab8 {[%emt 0:00:34]} 25. Rb1 {[%emt 0:07:01]} Rb4 {[%emt 0:11:17]} 26. Kc2 {[%emt 0:02:47]} Rc8 {[%emt 0:01:06]} 27. Rhf1 {[%emt 0:05:37]} Qc5 {[%emt 0:05:34]} 28. Rfd1 {[%emt 0:00:40]} Ba4+ 0-1

[Event "ESTCC-65 2025"]
[Site "Swidnica"]
[Date "2025.04.09"]
[Round "6"]
[White "Rooze, Jan"]
[Black "Maier, Christian"]
[Result "0-1"]
[Annotator "ChessBase"]
[ECO "C50"]
[WhiteElo "2198"]
[BlackElo "2233"]
[PlyCount "76"]
[EventDate "2025.04.05"]
[EventType "team-tourn"]
[EventCountry "POL"]
[SourceTitle "playchess.com"]
[Source "ChessBase"]
[SourceQuality "1"]
[WhiteTeam "Belgium"]
[BlackTeam "Germany"]
[WhiteTeamCountry "BEL"]
[BlackTeamCountry "GER"]
[TimeControl "40/5400+30:1800+30"]

1. e4 {[%emt 0:00:03]} e5 {[%emt 0:00:26]} 2. Nf3 {[%emt 0:00:08]} Nc6 {[%emt 0:00:07]} 3. Bc4 {[%emt 0:00:07]} Bc5 {[%emt 0:00:48]} 4. O-O {[%emt 0:00:42]} d6 {[%emt 0:00:40]} 5. c3 {[%emt 0:02:15]} Nf6 {[%emt 0:03:02]} 6. d3 {[%emt 0:01:59]} a5 {[%emt 0:02:26]} 7. a4 {[%emt 0:15:52]} Ba7 {[%emt 0:02:34]} 8. Be3 {[%emt 0:03:10]} O-O {[%emt 0:01:40]} 9. Nbd2 {[%emt 0:01:07]} Ne7 {[%emt 0:01:03]} 10. Bb3 {[%emt 0:07:09]} Ng6 {[%emt 0:00:34]} 11. Qc2 {[%emt 0:02:07]} h6 {[%emt 0:07:43]} 12. Rae1 {[%emt 0:03:23]} Nh5 {[%emt 0:04:08]} 13. d4 {[%emt 0:01:57]} Qf6 {[%emt 0:01:18]} 14. dxe5 {[%emt 0:08:07]} dxe5 {[%emt 0:04:13]} 15. Bxa7 {[%emt 0:11:00]} Rxa7 {[%emt 0:00:07]} 16. Kh1 {[%emt 0:05:40]} Nhf4 {[%emt 0:03:42]} 17. Rg1 {[%emt 0:01:02]} Ra6 {[%emt 0:02:23]} 18. Bc4 {[%emt 0:00:41]} Rd6 {[%emt 0:00:12]} 19. Bf1 {[%emt 0:00:22]} b6 {[%emt 0:04:18]} 20. Nc4 {[%emt 0:01:22]} Rdd8 {[%emt 0:02:50]} 21. Ne3 {[%emt 0:00:31]} Nh3 {[%emt 0:11:54]} 22. Nd5 {[%emt 0:05:04]} Rxd5 {[%emt 0:00:19]} 23. exd5 {[%emt 0:00:14]} Bf5 {[%emt 0:17:35]} 24. Qd2 {[%emt 0:00:48]} Nxg1 {[%emt 0:01:08]} 25. Kxg1 {[%emt 0:01:47]} Qd6 {[%emt 0:00:18]} 26. Bc4 {[%emt 0:05:02]} Bg4 {[%emt 0:06:27]} 27. Qe3 {[%emt 0:04:11]} Bxf3 {[%emt 0:00:15]} 28. Qxf3 {[%emt 0:00:10]} f5 {[%emt 0:00:07]} 29. Qd1 {[%emt 0:02:43]} Kh7 {[%emt 0:02:15]} 30. Bf1 {[%emt 0:02:23]} Rd8 {[%emt 0:01:30]} 31. Qh5 {[%emt 0:01:12]} Qf6 {[%emt 0:00:21]} 32. c4 {[%emt 0:03:11]} e4 33. Qe2 {[%emt 0:02:55]} Qd4 {[%emt 0:05:43]} 34. Rd1 {[%emt 0:01:04]} Qc5 {[%emt 0:01:36]} 35. Qe3 {[%emt 0:03:13]} Rd6 {[%emt 0:06:15]} 36. Qc3 {[%emt 0:03:12]} c6 {[%emt 0:01:00]} 37. Qb3 {[%emt 0:00:19]} Ne5 {[%emt 0:00:36]} 38. dxc6 {[%emt 0:00:56]} Ng4 {[%emt 0:00:58]} 0-1

[Event "ESTCC-65 2025"]
[Site "Swidnica"]
[Date "2025.04.09"]
[Round "6"]
[White "Janocha, Wieslaw"]
[Black "Sandner, Gunter"]
[Result "1-0"]
[Annotator "ChessBase"]
[ECO "A61"]
[WhiteElo "2186"]
[BlackElo "2243"]
[PlyCount "99"]
[EventDate "2025.04.05"]
[EventType "team-tourn"]
[EventCountry "POL"]
[SourceTitle "playchess.com"]
[Source "ChessBase"]
[SourceQuality "1"]
[WhiteTeam "Poland"]
[BlackTeam "Germany"]
[WhiteTeamCountry "POL"]
[BlackTeamCountry "GER"]
[TimeControl "40/5400+30:1800+30"]

1. d4 {[%emt 0:00:08]} Nf6 {[%emt 0:00:12]} 2. c4 {[%emt 0:00:07]} e6 {[%emt 0:00:27]} 3. Nf3 {[%emt 0:00:06]} c5 {[%emt 0:02:44]} 4. d5 {[%emt 0:00:09]} exd5 {[%emt 0:00:01]} 5. cxd5 {[%emt 0:00:11]} d6 {[%emt 0:00:05]} 6. Nc3 {[%emt 0:00:10]} g6 {[%emt 0:00:10]} 7. Nd2 {[%emt 0:00:13]} a6 {[%emt 0:01:01]} 8. a4 {[%emt 0:00:07]} Nbd7 {[%emt 0:03:23]} 9. e4 {[%emt 0:00:26]} Bg7 {[%emt 0:04:18]} 10. Be2 {[%emt 0:00:16]} O-O {[%emt 0:00:15]} 11. O-O {[%emt 0:00:06]} Re8 {[%emt 0:01:42]} 12. Re1 {[%emt 0:00:08]} Rb8 {[%emt 0:03:43]} 13. h3 {[%emt 0:00:07]} Qc7 {[%emt 0:02:34]} 14. Bf1 {[%emt 0:00:39]} b6 {[%emt 0:03:43]} 15. Nc4 {[%emt 0:04:36]} b5 {[%emt 0:06:45]} 16. axb5 {[%emt 0:03:24]} axb5 {[%emt 0:00:06]} 17. Na5 {[%emt 0:01:15]} c4 {[%emt 0:02:01]} 18. Nc6 {[%emt 0:01:28]} Rb7 19. Ra5 {[%emt 0:08:37]} Ne5 {[%emt 0:15:15]} 20. Nxb5 {[%emt 0:06:38]} Rxb5 {[%emt 0:02:09]} 21. Rxb5 {[%emt 0:00:07]} Nxc6 {[%emt 0:00:12]} 22. dxc6 {[%emt 0:00:18]} Qxc6 {[%emt 0:00:03]} 23. Rb8 {[%emt 0:01:59]} Nxe4 {[%emt 0:05:53]} 24. f3 {[%emt 0:15:51]} Nf6 {[%emt 0:02:32]} 25. Rxe8+ {[%emt 0:00:18]} Nxe8 {[%emt 0:00:03]} 26. Be3 {[%emt 0:00:13]} d5 {[%emt 0:09:39]} 27. Bd4 {[%emt 0:02:23]} Bf8 {[%emt 0:06:54]} 28. Qe1 {[%emt 0:04:36]} Bc5 {[%emt 0:09:17]} 29. Bxc5 {[%emt 0:11:05]} Qxc5+ {[%emt 0:00:01]} 30. Kh1 {[%emt 0:00:00]} Kf8 {[%emt 0:04:31]} 31. Qe5 {[%emt 0:00:24]} f6 {[%emt 0:00:50]} 32. Rxc8 {[%emt 0:01:48]} Qxc8 {[%emt 0:00:49]} 33. Qxd5 {[%emt 0:00:03]} Ke7 {[%emt 0:00:51]} 34. Qxc4 {[%emt 0:00:55]} Qxc4 {[%emt 0:03:42]} 35. Bxc4 {[%emt 0:00:03]} Nd6 {[%emt 0:02:50]} 36. Bg8 {[%emt 0:01:43]} h6 {[%emt 0:00:06]} 37. Kg1 {[%emt 0:00:12]} Nf5 {[%emt 0:01:42]} 38. g4 {[%emt 0:03:38]} Ne3 {[%emt 0:01:40]} 39. Bb3 {[%emt 0:00:02]} f5 {[%emt 0:01:00]} 40. f4 {[%emt 0:00:00]} fxg4 {[%emt 0:00:00]} 41. Kf2 {[%emt 0:04:07]} Nf5 {[%emt 0:03:43]} 42. hxg4 {[%emt 0:00:08]} Nd4 {[%emt 0:02:10]} 43. Ba2 {[%emt 0:01:30]} g5 {[%emt 0:01:28]} 44. fxg5 {[%emt 0:00:12]} hxg5 {[%emt 0:00:02]} 45. Ke3 {[%emt 0:00:01]} Nc6 {[%emt 0:03:00]} 46. Ke4 {[%emt 0:01:51]} Kf6 {[%emt 0:00:17]} 47. Bc4 {[%emt 0:00:28]} Ne5 {[%emt 0:00:20]} 48. Be2 {[%emt 0:00:02]} Ke6 {[%emt 0:00:08]} 49. b3 {[%emt 0:00:34]} Nc6 {[%emt 0:01:06]} 50. Bc4+ {[%emt 0:00:10]} 1-0

[Event "ESTCC-65 2025"]
[Site "Swidnica"]
[Date "2025.04.09"]
[Round "6"]
[White "Jahnel, Guenther"]
[Black "Zyla, Janusz"]
[Result "1/2-1/2"]
[Annotator "ChessBase"]
[ECO "D09"]
[WhiteElo "2148"]
[BlackElo "2181"]
[PlyCount "23"]
[EventDate "2025.04.05"]
[EventType "team-tourn"]
[EventCountry "POL"]
[SourceTitle "playchess.com"]
[Source "ChessBase"]
[SourceQuality "1"]
[WhiteTeam "Germany"]
[BlackTeam "Poland"]
[WhiteTeamCountry "GER"]
[BlackTeamCountry "POL"]
[TimeControl "40/5400+30:1800+30"]

1. d4 {[%emt 0:00:06]} d5 {[%emt 0:00:13]} 2. c4 {[%emt 0:00:32]} e5 {[%emt 0:00:20]} 3. dxe5 {[%emt 0:00:46]} d4 {[%emt 0:00:10]} 4. Nf3 {[%emt 0:00:18]} Nc6 {[%emt 0:00:10]} 5. g3 {[%emt 0:00:13]} Nge7 {[%emt 0:00:19]} 6. Bg2 {[%emt 0:00:40]} Ng6 {[%emt 0:00:14]} 7. O-O {[%emt 0:03:44]} Ngxe5 {[%emt 0:01:49]} 8. Nbd2 {[%emt 0:05:37]} Be7 {[%emt 0:03:34]} 9. Nxe5 {[%emt 0:06:22]} Nxe5 {[%emt 0:00:13]} 10. Nf3 {[%emt 0:01:02]} Nxf3+ {[%emt 0:06:16]} 11. Bxf3 {[%emt 0:00:28]} O-O {[%emt 0:01:50]} 12. Qd3 {[%emt 0:09:16]} 1/2-1/2

[Event "ESTCC-65 2025"]
[Site "Swidnica"]
[Date "2025.04.09"]
[Round "6"]
[White "Vogel, Robert"]
[Black "Van Herck, Marcel"]
[Result "1/2-1/2"]
[Annotator "NA"]
[ECO "E09"]
[WhiteElo "2145"]
[BlackElo "1962"]
[PlyCount "120"]
[EventDate "2025.04.05"]
[EventType "team-tourn"]
[EventCountry "POL"]
[SourceTitle "playchess.com"]
[Source "ChessBase"]
[SourceQuality "1"]
[WhiteTeam "Germany"]
[BlackTeam "Belgium"]
[WhiteTeamCountry "GER"]
[BlackTeamCountry "BEL"]
[TimeControl "40/5400+30:1800+30"]

1. d4 {[%emt 0:00:05]} d5 {[%emt 0:00:21]} 2. c4 {[%emt 0:00:59]} e6 {[%emt 0:00:14]} 3. Nf3 {[%emt 0:01:29]} c6 {[%emt 0:01:09]} 4. Nbd2 {[%emt 0:06:25]} Nf6 {[%emt 0:00:42]} 5. g3 {[%emt 0:01:19]} Nbd7 {[%emt 0:00:56]} 6. Bg2 {[%emt 0:00:16]} Be7 {[%emt 0:08:27]} 7. O-O {[%emt 0:00:25]} O-O {[%emt 0:00:04]} 8. Qc2 {[%emt 0:02:57]} b6 {[%emt 0:00:39]} 9. e4 {[%emt 0:00:37]} dxe4 {[%emt 0:00:34]} 10. Nxe4 {[%emt 0:00:07]} Bb7 {[%emt 0:07:00]} 11. Bf4 {[%emt 0:01:33]} Nxe4 {[%emt 0:00:53]} 12. Qxe4 {[%emt 0:00:08]} Nf6 {[%emt 0:02:08]} 13. Qe2 {[%emt 0:04:13]} c5 {[%emt 0:04:56]} 14. Rfd1 {[%emt 0:01:45]} Qc8 {[%emt 0:01:29]} 15. d5 {[%emt 0:05:36]} Nh5 {[%emt 0:03:55]} 16. Bd2 {[%emt 0:04:14]} Bf6 {[%emt 0:02:52]} 17. dxe6 {[%emt 0:04:35]} g6 {[%emt 0:00:25]} 18. Bh6 {[%emt 0:03:48]} Ng7 {[%emt 0:01:59]} 19. exf7+ {[%emt 0:05:12]} Rxf7 {[%emt 0:00:17]} 20. Bf4 {[%emt 0:08:05]} Re7 {[%emt 0:01:55]} 21. Qd2 {[%emt 0:00:45]} Qe8 {[%emt 0:04:12]} 22. Bg5 {[%emt 0:06:07]} Re2 {[%emt 0:03:55]} 23. Qd3 {[%emt 0:00:59]} Bxb2 {[%emt 0:03:39]} 24. Rab1 {[%emt 0:01:54]} Qe4 {[%emt 0:00:55]} 25. Bf1 {[%emt 0:09:03]} Qxf3 {[%emt 0:11:45]} 26. Qxf3 {[%emt 0:00:07]} Bxf3 {[%emt 0:00:05]} 27. Bxe2 {[%emt 0:00:10]} Bxe2 {[%emt 0:00:05]} 28. Rd2 {[%emt 0:00:13]} Bxc4 {[%emt 0:00:20]} 29. Rbxb2 {[%emt 0:00:36]} Ne6 {[%emt 0:00:24]} 30. Be3 {[%emt 0:02:14]} Kf7 {[%emt 0:02:46]} 31. Rd7+ {[%emt 0:01:38]} Kf6 {[%emt 0:00:04]} 32. Rbd2 {[%emt 0:02:24]} h5 {[%emt 0:00:25]} 33. a3 {[%emt 0:00:57]} Bb5 {[%emt 0:06:28]} 34. R7d6 {[%emt 0:03:08]} Rc8 {[%emt 0:01:55]} 35. f3 {[%emt 0:02:43]} Ke7 {[%emt 0:10:34]} 36. R6d5 {[%emt 0:05:26]} Bc6 {[%emt 0:00:36]} 37. Re5 {[%emt 0:00:08]} Kf6 {[%emt 0:02:21]} 38. f4 {[%emt 0:00:17]} Bf3 {[%emt 0:02:01]} 39. Rf2 {[%emt 0:07:03]} Bg4 {[%emt 0:00:47]} 40. Bd2 {[%emt 0:00:00]} Rd8 {[%emt 0:00:00]} 41. Bc3 {[%emt 0:02:40]} Kf7 {[%emt 0:06:32]} 42. Rd2 {[%emt 0:04:22]} Rxd2 {[%emt 0:02:04]} 43. Bxd2 {[%emt 0:00:02]} Nd4 {[%emt 0:00:10]} 44. Kf2 {[%emt 0:00:39]} Nf3 {[%emt 0:00:41]} 45. Rd5 {[%emt 0:00:38]} Ke6 {[%emt 0:00:48]} 46. Rd8 {[%emt 0:01:52]} Nxd2 {[%emt 0:12:47]} 47. Rxd2 {[%emt 0:00:16]} c4 {[%emt 0:01:33]} 48. Ke3 {[%emt 0:00:51]} Bf5 {[%emt 0:00:23]} 49. Kd4 {[%emt 0:01:24]} Bd3 {[%emt 0:00:10]} 50. Rd1 {[%emt 0:02:54]} Kd6 {[%emt 0:01:21]} 51. Re1 {[%emt 0:01:35]} b5 {[%emt 0:05:57]} 52. Re5 {[%emt 0:00:19]} Kc6 {[%emt 0:00:44]} 53. Rg5 {[%emt 0:01:37]} a5 {[%emt 0:00:35]} 54. h3 {[%emt 0:01:05]} Kb6 {[%emt 0:00:52]} 55. g4 {[%emt 0:00:39]} hxg4 {[%emt 0:00:05]} 56. hxg4 {[%emt 0:00:02]} b4 {[%emt 0:00:18]} 57. a4 {[%emt 0:04:57]} Be2 {[%emt 0:00:59]} 58. Rxg6+ {[%emt 0:00:11]} Kc7 {[%emt 0:00:06]} 59. Rg5 {[%emt 0:00:55]} c3 {[%emt 0:00:30]} 60. Rxa5 {[%emt 0:00:29]} Bxg4 {[%emt 0:00:15]} 1/2-1/2